bitfinex-derivatives/quotes_BTCF0:USTF0_20241006
["timestamp","ask_amount","ask_price","bid_price","bid_amount"]
[1728251863939,0.11,62366.0,62364.0,0.04809187]
[1728251864143,0.064141,62365.0,62363.0,0.04809187]
[1728251864352,0.094741,62365.0,62363.0,0.04809187]
[1728251865248,0.094741,62365.0,62362.0,0.04809187]
[1728251865751,0.098741,62365.0,62362.0,0.04809187]
[1728251866851,0.099741,62365.0,62362.0,0.04809187]
[1728251867652,0.099741,62365.0,62361.0,0.04809187]
[1728251867852,0.064143,62363.0,62362.0,0.04809187]
[1728251868050,0.064143,62363.0,62359.0,0.0008]
[1728251868051,0.174143,62363.0,62360.0,0.04809187]
[1728251868247,0.174143,62363.0,62359.0,0.04889187]
[1728251868647,0.174143,62363.0,62360.0,0.04809187]
[1728251869156,0.177143,62363.0,62359.0,0.04889187]
[1728251869349,0.177143,62363.0,62360.0,0.04809187]
[1728251869553,0.177143,62363.0,62359.0,0.0008]
[1728251869756,0.53827851,62363.0,62359.0,0.0008]
[1728251870251,0.1104,62360.0,62352.0,0.0149]
[1728251870553,0.1104,62360.0,62337.0,0.36192]
[1728251870554,0.0309,62359.0,62354.0,0.04801254]
[1728251870752,0.0309,62359.0,62353.0,0.04801254]
[1728251870947,0.174553,62354.0,62353.0,0.04801254]
[1728251871143,0.174553,62354.0,62352.0,0.04801254]
[1728251871346,0.0609,62353.0,62352.0,0.008]
[1728251871549,0.54202,62353.0,62352.0,0.008]
[1728251871856,1.14202,62353.0,62352.0,0.008]
[1728251872245,1.14202,62353.0,62343.0,0.0002]
[1728251872246,0.064155,62352.0,62343.0,0.0002]
[1728251872550,0.06416,62347.0,62343.0,0.0002]
[1728251872755,0.11,62344.0,62343.0,0.0002]
[1728251873642,0.11,62344.0,62343.0,0.0082]
[1728251873643,1.1912,62344.0,62343.0,0.0082]
[1728251874345,0.5912,62344.0,62343.0,0.0082]
[1728251874558,0.111,62344.0,62343.0,0.0112]
[1728251875260,0.111,62344.0,62343.0,0.0032]
[1728251875450,0.112,62344.0,62343.0,0.0112]
[1728251876558,0.002,62344.0,62343.0,0.0112]
[1728251876766,0.112,62344.0,62343.0,0.0112]
[1728251880663,0.002,62344.0,62343.0,0.0112]
[1728251880869,0.002,62344.0,62343.0,0.075364]
[1728251882361,0.002,62344.0,62343.0,0.106664]
[1728251883665,0.47164,62348.0,62346.0,0.06416]
[1728251883866,0.4708,62348.0,62346.0,0.06416]
[1728251884967,0.4708,62348.0,62346.0,0.06916]
[1728251885268,0.4708,62348.0,62346.0,0.07216]
[1728251888371,0.0041,62354.0,62350.0,0.064156]
[1728251888567,0.11,62353.0,62350.0,0.064156]
[1728251889273,0.11,62353.0,62346.0,0.008]
[1728251889474,0.11,62353.0,62352.0,0.064155]
[1728251889874,0.111,62353.0,62352.0,0.064155]
[1728251890373,0.11,62353.0,62352.0,0.064155]
[1728251891069,0.113,62353.0,62352.0,0.064155]
[1728251891868,0.114,62353.0,62352.0,0.064155]
[1728251897263,0.004,62353.0,62352.0,0.064155]
[1728251908475,0.004,62353.0,62352.0,0.174155]
[1728251908679,0.004,62353.0,62352.0,0.20234092]
[1728251913086,0.004,62353.0,62349.0,0.07994419]
[1728251913087,0.064156,62351.0,62349.0,0.07994419]
[1728251913281,0.205155,62352.0,62347.0,0.06416]
[1728251914184,0.141,62352.0,62349.0,0.002]
[1728251914489,0.174157,62350.0,62349.0,0.002]
[1728251914990,0.206257,62350.0,62349.0,0.002]
[1728251915372,0.687417,62350.0,62349.0,0.002]
[1728251916185,0.687417,62350.0,62347.0,0.004]
[1728251916385,0.11,62348.0,62347.0,0.004]
[1728251916985,0.11,62348.0,62345.0,0.07994419]
[1728251917697,0.11,62348.0,62347.0,0.002]
[1728251917883,0.11,62348.0,62347.0,0.006]
[1728251918884,0.11,62348.0,62347.0,0.004]
[1728251919594,0.111,62348.0,62345.0,0.08994419]
[1728251920378,0.11,62348.0,62347.0,0.004]
[1728251920580,0.11,62348.0,62347.0,0.006]
[1728251921079,0.11,62348.0,62347.0,0.004]
[1728251921291,0.111,62348.0,62345.0,0.08994419]
[1728251921789,0.111,62348.0,62347.0,0.002]
[1728251922386,0.111,62348.0,62345.0,0.01]
[1728251923396,0.11,62348.0,62347.0,0.004]
[1728251923993,0.11,62348.0,62345.0,0.004]
[1728251924195,0.111,62348.0,62347.0,0.002]
[1728251924698,0.59216,62348.0,62347.0,0.002]
[1728251925284,0.59216,62348.0,62345.0,0.004]
[1728251925485,0.11,62348.0,62347.0,0.004]
[1728251927087,0.111,62348.0,62345.0,0.01]
[1728251927599,0.111,62348.0,62347.0,0.002]
[1728251927799,0.11,62348.0,62347.0,0.006]
[1728251928388,0.11,62348.0,62347.0,0.004]
[1728251928596,0.111,62348.0,62345.0,0.01]
[1728251928990,0.111,62348.0,62347.0,0.002]
[1728251929993,0.11,62348.0,62347.0,0.002]
[1728251930194,0.11,62348.0,62347.0,0.006]
[1728251946304,0.174159,62348.0,62347.0,0.006]
[1728251966424,0.064159,62348.0,62347.0,0.006]
[1728251966725,0.174159,62348.0,62347.0,0.006]
[1728251971114,0.655319,62348.0,62347.0,0.006]
[1728251971618,0.174159,62348.0,62347.0,0.006]
[1728251979527,0.064159,62348.0,62347.0,0.006]
[1728251979727,0.174159,62348.0,62347.0,0.006]
[1728251982830,0.174159,62348.0,62347.0,0.07019677]
[1728251983033,0.3608,62349.0,62347.0,0.07019677]
[1728251983229,0.11,62350.0,62348.0,0.06419677]
[1728251983432,0.4708,62350.0,62348.0,0.06419677]
[1728251984635,0.4708,62350.0,62348.0,0.06519677]
[1728251985841,0.4708,62350.0,62348.0,0.06819677]
[1728251986136,0.4708,62350.0,62348.0,0.13235477]
[1728251986435,0.4708,62350.0,62349.0,0.06419677]
[1728251986623,0.4708,62350.0,62348.0,0.13235477]
[1728251987332,0.3608,62350.0,62348.0,0.13235477]
[1728251987636,0.11,62349.0,62348.0,0.13235477]
[1728251988226,0.11,62349.0,62348.0,0.12935477]
[1728251988634,0.11,62349.0,62348.0,0.12835477]
[1728251988834,0.11,62349.0,62348.0,0.12935477]
[1728251989034,0.11,62349.0,62348.0,0.068158]
[1728251992228,0.11,62349.0,62348.0,0.11630254]
[1728251993842,0.11,62349.0,62348.0,0.068158]
[1728252000538,0.0004,62354.0,62350.0,0.064157]
[1728252000739,0.0004,62354.0,62348.0,0.004]
[1728252000740,0.0004,62354.0,62353.0,0.06418869]
[1728252000945,0.0004,62354.0,62351.0,0.064155]
[1728252000946,0.1104,62354.0,62351.0,0.064155]
[1728252001546,0.1104,62354.0,62353.0,0.06416208]
[1728252001849,0.1104,62354.0,62352.0,0.06416208]
[1728252002042,0.13903648,62354.0,62352.0,0.06416208]
[1728252002244,0.064155,62352.0,62350.0,0.06516208]
[1728252002444,0.11,62351.0,62350.0,0.06416208]
[1728252002847,0.11,62351.0,62349.0,0.12832008]
[1728252003051,0.11,62351.0,62350.0,0.12831908]
[1728252003242,0.11,62351.0,62350.0,0.064157]
[1728252003749,0.11,62351.0,62350.0,0.12831314]
[1728252004247,0.11,62351.0,62350.0,0.065157]
[1728252004838,0.111,62351.0,62350.0,0.065157]
[1728252005647,0.111,62351.0,62350.0,0.12930292]
[1728252006348,0.111,62351.0,62350.0,0.001]
[1728252006537,0.175156,62351.0,62350.0,0.06514421]
[1728252006735,0.175156,62351.0,62350.0,0.001]
[1728252007250,0.001,62351.0,62350.0,0.065157]
[1728252007444,0.001,62351.0,62350.0,0.175157]
[1728252007638,0.001,62351.0,62350.0,0.29737727]
[1728252008549,0.0004,62354.0,62350.0,0.23322027]
[1728252008737,0.0004,62354.0,62353.0,0.424954]
[1728252008942,0.0004,62354.0,62353.0,0.50509967]
[1728252009139,0.0004,62354.0,62353.0,0.424954]
[1728252009545,0.0004,62354.0,62353.0,1.69621555]
[1728252009950,0.0004,62354.0,62353.0,1.7382782]
[1728252010342,0.0044,62354.0,62353.0,1.7382782]
[1728252010842,0.0004,62360.0,62353.0,1.5641242]
[1728252011040,0.0004,62360.0,62359.0,0.174147]
[1728252011349,0.0075,62366.0,62365.0,0.064141]
[1728252011546,0.0037,62370.0,62365.0,0.064141]
[1728252011547,0.0075,62372.0,62370.0,0.064136]
[1728252011745,0.0075,62376.0,62371.0,0.11]
[1728252011955,0.0075,62376.0,62375.0,0.04801841]
[1728252012142,0.0075,62376.0,62374.0,0.174132]
[1728252012449,0.0075,62376.0,62375.0,0.48096]
[1728252012755,0.0075,62376.0,62375.0,1.08096]
[1728252013451,0.0037,62377.0,62376.0,0.06413]
[1728252013639,0.0041,62386.0,62376.0,0.48096]
[1728252013945,0.0004,62386.0,62382.0,0.174123]
[1728252014140,0.0004,62386.0,62376.0,0.48096]
[1728252014141,0.0004,62386.0,62385.0,0.11]
[1728252014340,0.0004,62386.0,62385.0,0.71]
[1728252014550,0.0004,62386.0,62385.0,1.25388]
[1728252015044,0.0004,62386.0,62385.0,1.61468]
[1728252016643,0.0114,62386.0,62385.0,1.64488]
[1728252017052,0.0041,62393.0,62392.0,0.064113]
[1728252017250,0.0004,62393.0,62392.0,0.064113]
[1728252017446,0.0004,62393.0,62392.0,0.174113]
[1728252017755,0.0004,62393.0,62387.0,0.064118]
[1728252018454,0.0044,62393.0,62387.0,0.064118]
[1728252018752,0.06411,62396.0,62390.0,0.11]
[1728252019141,0.003,62393.0,62390.0,0.11]
[1728252019850,0.003,62393.0,62391.0,0.064114]
[1728252020041,0.005,62393.0,62391.0,0.064114]
[1728252020441,0.003,62393.0,62391.0,0.064114]
[1728252020653,0.006,62393.0,62391.0,0.064114]
[1728252020855,0.003,62393.0,62391.0,0.064114]
[1728252021655,0.006,62393.0,62391.0,0.064114]
[1728252022354,0.03,62392.0,62390.0,0.004]
[1728252022660,0.03,62392.0,62387.0,0.0037]
[1728252022952,0.03,62392.0,62386.0,0.11]
[1728252022953,0.094114,62392.0,62386.0,0.11]
[1728252023156,0.124914,62392.0,62386.0,0.11]
[1728252023349,0.0608,62392.0,62386.0,0.11]
[1728252023557,0.064117,62389.0,62386.0,0.11]
[1728252023749,0.064117,62389.0,62387.0,0.001]
[1728252024341,0.064117,62389.0,62386.0,0.112]
[1728252025346,0.064117,62389.0,62387.0,0.001]
[1728252025347,0.071117,62389.0,62387.0,0.001]
[1728252026547,0.007,62389.0,62387.0,0.001]
[1728252026753,0.015,62389.0,62387.0,0.002]
[1728252027350,0.008,62389.0,62387.0,0.001]
[1728252027546,0.014,62389.0,62387.0,0.001]
[1728252028249,0.015,62389.0,62387.0,0.002]
[1728252037262,0.015,62389.0,62388.0,0.064118]
[1728252038557,0.008,62389.0,62388.0,0.064118]
[1728252038759,0.016,62389.0,62388.0,0.065118]
[1728252039855,0.008,62389.0,62388.0,0.065118]
[1728252040170,0.017,62389.0,62388.0,0.066118]
[1728252040358,0.017,62389.0,62388.0,0.11413641]
[1728252040659,0.017,62389.0,62388.0,0.11409211]
[1728252041066,0.017,62389.0,62388.0,0.066118]
[1728252042861,0.017,62389.0,62388.0,0.57630872]
[1728252043063,0.0041,62397.0,62396.0,0.064109]
[1728252043367,0.0004,62397.0,62396.0,0.654909]
[1728252043563,0.0004,62397.0,62396.0,1.254909]
[1728252043866,0.3645,62404.0,62403.0,0.064102]
[1728252043867,0.0037,62404.0,62403.0,0.064102]
[1728252044164,0.0004,62408.0,62405.0,0.0641]
[1728252044556,0.0004,62408.0,62405.0,1.14482]
[1728252045067,0.0004,62408.0,62405.0,1.25482]
[1728252045758,0.0004,62408.0,62405.0,1.31887263]
[1728252046153,0.0004,62408.0,62404.0,0.362]
[1728252046458,0.0004,62408.0,62404.0,0.3608]
[1728252048569,0.0004,62408.0,62404.0,0.3618]
[1728252049468,0.0004,62408.0,62404.0,0.001]
[1728252050064,0.0004,62408.0,62405.0,0.0641]
[1728252050474,0.0024,62406.0,62405.0,0.0641]
[1728252051965,0.0004,62406.0,62405.0,0.0641]
[1728252052165,0.0024,62406.0,62405.0,0.0641]
[1728252053172,0.0024,62406.0,62403.0,0.17]
[1728252053369,0.0024,62406.0,62404.0,0.004]
[1728252053557,0.0024,62406.0,62405.0,0.001]
[1728252053960,0.0034,62406.0,62405.0,0.001]
[1728252054760,0.0004,62406.0,62405.0,0.001]
[1728252054966,0.0034,62406.0,62405.0,0.002]
[1728252056759,0.0034,62406.0,62405.0,0.001]
[1728252057678,0.0004,62406.0,62405.0,0.001]
[1728252057869,0.0034,62406.0,62405.0,0.002]
[1728252058466,0.0004,62406.0,62405.0,0.001]
[1728252058665,0.0034,62406.0,62405.0,0.002]
[1728252060671,0.0034,62406.0,62405.0,0.0661]
[1728252062078,0.0034,62406.0,62405.0,0.002]
[1728252065978,0.0034,62406.0,62405.0,0.001]
[1728252066180,0.0034,62406.0,62405.0,0.002]
[1728252067685,0.0004,62406.0,62405.0,0.001]
[1728252067986,0.0034,62406.0,62405.0,0.002]
[1728252069466,0.0034,62406.0,62405.0,0.0661]
[1728252069968,0.0004,62406.0,62405.0,0.0651]
[1728252070172,0.0034,62406.0,62405.0,0.0651]
[1728252070370,0.0034,62406.0,62405.0,0.0661]
[1728252072376,0.0034,62406.0,62405.0,0.1761]
[1728252076181,0.0034,62406.0,62405.0,0.1801]
[1728252078080,0.0034,62406.0,62405.0,0.5409]
[1728252079789,0.12276744,62406.0,62405.0,0.5409]
[1728252080199,0.07358689,62406.0,62405.0,1.62162]
[1728252080488,0.0037,62411.0,62410.0,0.064095]
[1728252080691,0.15913504,62420.0,62419.0,0.064086]
[1728252080990,0.033,62428.0,62419.0,0.064086]
[1728252080991,0.33424584,62428.0,62427.0,0.064078]
[1728252081295,0.0043,62447.0,62427.0,0.174078]
[1728252081296,0.22320004,62439.0,62427.0,0.174078]
[1728252081482,0.19213504,62440.0,62427.0,0.174078]
[1728252081781,0.033,62440.0,62427.0,0.174078]
[1728252082392,0.033,62440.0,62428.0,0.17]
[1728252082778,0.0037,62441.0,62437.0,0.064067]
[1728252082978,0.00240294,62447.0,62439.0,0.17]
[1728252083179,0.00240294,62447.0,62437.0,0.064067]
[1728252083180,0.00240294,62447.0,62444.0,0.17]
[1728252083890,0.04915604,62446.0,62444.0,0.17]
[1728252084084,0.04915597,62445.0,62444.0,0.17]
[1728252084390,0.00240294,62447.0,62444.0,0.171]
[1728252085789,0.00240294,62447.0,62444.0,0.172]
[1728252085986,0.00240294,62447.0,62444.0,0.171]
[1728252086175,0.00240294,62447.0,62444.0,0.172]
[1728252087078,0.00240294,62447.0,62445.0,0.064059]
[1728252087391,0.00240294,62447.0,62444.0,0.172]
[1728252087707,0.00240294,62447.0,62446.0,0.064058]
[1728252089191,0.00240294,62447.0,62446.0,0.068058]
[1728252089589,0.00240294,62447.0,62446.0,0.004]
[1728252089985,0.06600294,62447.0,62446.0,0.001]
[1728252090193,0.13005994,62447.0,62446.0,0.001]
[1728252090583,0.13005994,62447.0,62446.0,0.002]
[1728252091886,0.49085994,62447.0,62446.0,0.002]
[1728252092594,0.51901095,62447.0,62446.0,0.002]
[1728252093686,0.064063,62442.0,62437.0,0.075267]
[1728252093887,0.45495395,62447.0,62436.0,0.004]
[1728252093888,0.17,62445.0,62436.0,0.004]
[1728252094089,0.064066,62439.0,62433.0,0.06647347]
[1728252094288,0.0305,62438.0,62433.0,0.06647347]
[1728252094697,0.17,62437.0,62433.0,0.00240247]
[1728252094994,0.06407,62434.0,62433.0,0.00240247]
[1728252095592,0.06407,62434.0,62428.0,0.064076]
[1728252095793,0.0322,62433.0,62428.0,0.064076]
[1728252096698,0.627072,62433.0,62428.0,0.064076]
[1728252096994,0.033,62432.0,62428.0,0.064076]
[1728252097493,0.064075,62430.0,62423.0,0.064081]
[1728252097684,0.033,62432.0,62423.0,0.064081]
[1728252097685,0.064076,62429.0,62423.0,0.064081]
[1728252098299,0.064076,62429.0,62422.0,0.004]
[1728252098493,0.064077,62428.0,62422.0,0.004]
[1728252099503,0.064077,62428.0,62423.0,0.001]
[1728252099686,0.065077,62428.0,62423.0,0.001]
[1728252099888,0.065077,62428.0,62422.0,0.005]
[1728252100089,0.066077,62428.0,62422.0,0.006]
[1728252100496,0.065077,62428.0,62423.0,0.001]
[1728252100695,0.002,62428.0,62423.0,0.002]
[1728252100901,0.234081,62424.0,62423.0,0.002]
[1728252101199,0.594881,62424.0,62423.0,0.002]
[1728252101905,0.594881,62424.0,62414.0,0.01360318]
[1728252102096,0.17,62420.0,62414.0,0.00240318]
[1728252102292,0.064088,62417.0,62414.0,0.00240318]
[1728252102603,0.0309478,62416.0,62414.0,0.00240318]
[1728252102801,0.0309478,62415.0,62414.0,0.00240318]
[1728252102999,0.064088,62417.0,62414.0,0.00240318]
[1728252103000,0.0309478,62416.0,62414.0,0.00240318]
[1728252103200,0.0309478,62415.0,62414.0,0.00240318]
[1728252104100,0.0319478,62415.0,62414.0,0.00240318]
[1728252104490,0.001,62415.0,62414.0,0.00240318]
[1728252104695,0.03194947,62415.0,62414.0,0.00240318]
[1728252105697,0.03494947,62415.0,62414.0,0.00240318]
[1728252106502,0.07418569,62415.0,62414.0,0.00240318]
[1728252106706,0.03494947,62415.0,62414.0,0.00240318]
[1728252107091,0.07418576,62415.0,62414.0,0.00240318]
[1728252107398,0.13827576,62415.0,62414.0,0.00240318]
[1728252109503,0.06809,62415.0,62414.0,0.00240318]
[1728252116805,0.42889,62415.0,62414.0,0.00240318]
[1728252117106,0.3648,62415.0,62414.0,0.00240318]
[1728252117305,0.3648,62415.0,62414.0,0.064091]
[1728252117508,0.39574941,62415.0,62414.0,0.234091]
[1728252117898,0.3648,62415.0,62414.0,0.234091]
[1728252118302,0.39574757,62415.0,62414.0,0.234091]
[1728252121011,0.004,62415.0,62414.0,0.234091]
[1728252121916,0.003,62415.0,62414.0,0.240091]
[1728252122110,0.003,62415.0,62414.0,0.244091]
[1728252122611,0.0037,62422.0,62418.0,0.064086]
[1728252122814,0.03094475,62421.0,62419.0,0.2321]
[1728252123018,0.03094475,62420.0,62419.0,0.2321]
[1728252123318,0.03094475,62420.0,62419.0,0.296186]
[1728252124407,0.002,62421.0,62419.0,0.296186]
[1728252125228,0.002,62421.0,62419.0,0.3243369]
[1728252125515,0.3608,62425.0,62419.0,0.3243369]
[1728252125706,0.002,62420.0,62419.0,0.3243369]
[1728252126418,0.002,62421.0,62419.0,0.3243369]
[1728252126807,0.002,62420.0,62419.0,0.3243369]
[1728252128024,0.004,62420.0,62419.0,0.3243369]
[1728252131216,0.004,62420.0,62419.0,0.296186]
[1728252132821,0.07417456,62420.0,62419.0,0.296186]
[1728252133516,0.00240361,62428.0,62419.0,1.737586]
[1728252133711,0.00240361,62428.0,62427.0,0.064078]
[1728252134612,0.0037,62435.0,62434.0,0.06407]
[1728252134814,0.0037,62442.0,62437.0,0.064067]
[1728252135013,0.15913504,62443.0,62441.0,0.11]
[1728252135219,0.0313,62446.0,62441.0,0.11]
[1728252135220,0.04915709,62442.0,62441.0,0.11]
[1728252136412,0.04915709,62442.0,62439.0,0.17]
[1728252136616,0.19043504,62446.0,62439.0,0.17]
[1728252136818,0.04915704,62445.0,62441.0,0.001]
[1728252137020,0.19043504,62446.0,62427.0,0.03398149]
[1728252137021,0.17,62442.0,62427.0,0.03398149]
[1728252137223,0.17,62434.0,62429.0,0.0037]
[1728252137426,0.17,62434.0,62422.0,0.26635195]
[1728252137427,0.097071,62433.0,62422.0,0.26635195]
[1728252137631,0.0656,62433.0,62426.0,0.064078]
[1728252139019,0.0656,62433.0,62429.0,0.001]
[1728252139919,0.0666,62433.0,62426.0,0.064078]
[1728252140120,0.0666,62433.0,62429.0,0.001]
[1728252140617,0.002,62433.0,62432.0,0.064072]
[1728252141317,0.002,62433.0,62432.0,0.234072]
[1728252142123,0.0037,62438.0,62432.0,0.234072]
[1728252142330,0.001,62433.0,62432.0,0.235072]
[1728252142833,0.001,62433.0,62432.0,0.236072]
[1728252143226,0.001,62438.0,62432.0,0.236072]
[1728252143531,0.03093723,62437.0,62433.0,0.064071]
[1728252143723,0.03093723,62436.0,62433.0,0.064071]
[1728252143918,0.001,62438.0,62433.0,0.064071]
[1728252144132,0.03093723,62437.0,62433.0,0.064071]
[1728252144322,0.03093723,62436.0,62433.0,0.064071]
[1728252144631,0.001,62438.0,62433.0,0.064071]
[1728252144832,0.03093723,62437.0,62433.0,0.064071]
[1728252145128,0.001,62433.0,62432.0,0.236072]
[1728252145331,0.0037,62442.0,62439.0,0.064065]
[1728252145528,0.03093587,62441.0,62439.0,0.064065]
[1728252145729,0.00240294,62447.0,62442.0,0.064062]
[1728252145934,0.03093445,62446.0,62445.0,0.17]
[1728252146834,0.03093416,62446.0,62445.0,0.17]
[1728252147634,0.00240294,62447.0,62445.0,0.171]
[1728252148335,0.00240294,62447.0,62445.0,0.172]
[1728252148633,0.00240294,62447.0,62445.0,0.002]
[1728252148824,0.03093404,62446.0,62445.0,0.002]
[1728252152234,0.00240294,62447.0,62445.0,0.002]
[1728252154526,0.11930464,62446.0,62445.0,0.002]
[1728252154729,0.15913504,62446.0,62445.0,0.836059]
[1728252154929,0.0037,62452.0,62446.0,0.4804]
[1728252155141,0.0037,62452.0,62445.0,1.1328]
[1728252155142,0.0037,62456.0,62455.0,0.064049]
[1728252155335,0.18943504,62460.0,62456.0,0.064047]
[1728252155524,0.04914488,62459.0,62456.0,0.064047]
[1728252155731,0.04914488,62458.0,62455.0,0.17]
[1728252156034,0.04914488,62457.0,62456.0,0.064048]
[1728252156232,0.04914488,62459.0,62457.0,0.064046]
[1728252156435,0.04914551,62458.0,62457.0,0.064046]
[1728252156635,0.04914551,62458.0,62457.0,0.234046]
[1728252156843,0.15913504,62462.0,62460.0,0.064043]
[1728252157030,0.16283504,62468.0,62461.0,0.17]
[1728252157233,0.0303,62470.0,62467.0,0.17]
[1728252157832,0.40993535,62468.0,62458.0,0.248945]
[1728252158037,0.064038,62466.0,62458.0,0.234045]
[1728252158534,0.04914014,62465.0,62458.0,0.234045]
[1728252158730,0.3608,62468.0,62459.0,0.064044]
[1728252159046,0.0061022,62469.0,62466.0,0.17]
[1728252159243,0.0024022,62469.0,62468.0,0.064035]
[1728252161239,0.0024022,62469.0,62468.0,0.065035]
[1728252161840,0.0024022,62469.0,62468.0,0.066035]
[1728252162937,0.067729,62475.0,62468.0,0.002]
[1728252163145,0.064029,62475.0,62468.0,0.002]
[1728252163444,0.064029,62475.0,62470.0,0.17]
[1728252164039,0.064029,62475.0,62471.0,0.004]
[1728252164741,0.3608,62476.0,62474.0,0.17]
[1728252167128,0.3608,62476.0,62474.0,0.171]
[1728252167340,0.3608,62476.0,62474.0,0.172]
[1728252169542,0.03091925,62475.0,62474.0,0.002]
[1728252169735,0.07011734,62475.0,62474.0,0.002]
[1728252170634,0.07011734,62475.0,62474.0,0.001]
[1728252170839,0.07011734,62475.0,62474.0,0.002]
[1728252172544,0.13414534,62475.0,62474.0,0.002]
[1728252172732,0.064034,62469.0,62468.0,0.004]
[1728252172933,0.064038,62466.0,62460.0,0.064043]
[1728252173140,0.11925683,62465.0,62460.0,0.064043]
[1728252173331,0.11925683,62465.0,62462.0,0.17]
[1728252173736,0.07011734,62464.0,62462.0,0.17]
[1728252173946,0.11925767,62463.0,62459.0,0.00048]
[1728252174154,0.11925767,62462.0,62460.0,0.001]
[1728252174352,0.11925767,62461.0,62460.0,0.001]
[1728252174641,0.11925767,62461.0,62458.0,0.17]
[1728252174642,0.08833842,62461.0,62458.0,0.17]
[1728252174945,0.07011734,62460.0,62458.0,0.17]
[1728252175146,0.07011734,62459.0,62458.0,0.17]
[1728252175446,0.03092455,62459.0,62458.0,0.17]
[1728252175636,0.07012885,62463.0,62458.0,0.17]
[1728252175841,0.11926919,62462.0,62458.0,0.17]
[1728252176035,0.11926919,62461.0,62458.0,0.17]
[1728252176235,0.11926919,62460.0,62458.0,0.17]
[1728252176446,0.11926919,62459.0,62458.0,0.17]
[1728252176635,0.11926919,62462.0,62458.0,0.17]
[1728252176836,0.002,62460.0,62458.0,0.171]
[1728252177037,0.11926919,62459.0,62458.0,0.171]
[1728252177345,0.11926919,62459.0,62458.0,0.17]
[1728252177641,0.004,62460.0,62458.0,0.171]
[1728252177946,0.004,62460.0,62459.0,0.064045]
[1728252178144,0.002,62460.0,62459.0,0.064045]
[1728252179835,0.001,62460.0,62459.0,0.064045]
[1728252180239,0.002,62460.0,62459.0,0.064045]
[1728252180445,0.002,62460.0,62459.0,0.065045]
[1728252180847,0.001,62460.0,62459.0,0.065045]
[1728252181034,0.002,62460.0,62459.0,0.066045]
[1728252184644,0.16108535,62460.0,62459.0,0.066045]
[1728252184946,0.28034965,62460.0,62459.0,0.066045]
[1728252185150,0.1212643,62460.0,62459.0,0.066045]
[1728252186647,0.1212643,62460.0,62459.0,0.426845]
[1728252188156,0.12125882,62460.0,62459.0,0.426845]
[1728252189959,0.29636962,62460.0,62459.0,0.426845]
[1728252190157,0.29636962,62460.0,62459.0,0.066045]
[1728252191355,0.12125882,62460.0,62459.0,0.066045]
[1728252191558,0.29637843,62460.0,62459.0,0.066045]
[1728252192454,0.29638478,62460.0,62459.0,0.066045]
[1728252192659,0.20804797,62460.0,62459.0,0.066045]
[1728252192961,0.03292229,62460.0,62459.0,0.066045]
[1728252193859,0.002,62460.0,62459.0,0.066045]
[1728252194450,0.07212575,62460.0,62459.0,0.066045]
[1728252195859,0.07212575,62460.0,62459.0,0.002]
[1728252197173,0.002,62460.0,62459.0,0.002]
[1728252197963,0.12127252,62460.0,62459.0,0.002]
[1728252199758,0.12127252,62460.0,62459.0,0.00150503]
[1728252202864,1.3524963,62460.0,62459.0,0.00150503]
[1728252203063,1.44084313,62460.0,62459.0,0.00150503]
[1728252203253,1.32306037,62460.0,62459.0,0.00150503]
[1728252203453,1.25901637,62460.0,62451.0,0.078953]
[1728252203660,1.25901637,62460.0,62446.0,0.17]
[1728252203661,0.064049,62455.0,62446.0,0.1737]
[1728252203862,0.064049,62455.0,62448.0,0.00048]
[1728252203863,0.14947252,62454.0,62448.0,0.00048]
[1728252204058,0.17669637,62453.0,62448.0,0.00048]
[1728252204362,0.11927252,62452.0,62448.0,0.00048]
[1728252204662,0.11927252,62451.0,62448.0,0.00048]
[1728252204864,0.11927252,62450.0,62449.0,0.064054]
[1728252205163,0.08006685,62450.0,62449.0,0.064054]
[1728252205356,0.11927252,62450.0,62449.0,0.064054]
[1728252205555,0.03092569,62450.0,62449.0,0.064054]
[1728252206271,0.11927252,62450.0,62449.0,0.064054]
[1728252206464,0.28927252,62450.0,62448.0,0.00248]
[1728252206658,0.15127252,62449.0,62448.0,0.00048]
[1728252206860,0.35317252,62449.0,62444.0,0.06406]
[1728252207063,0.17,62445.0,62444.0,0.06406]
[1728252207254,0.25836958,62445.0,62444.0,0.06406]
[1728252207461,0.11930306,62445.0,62442.0,0.00048]
[1728252207774,0.2339,62449.0,62442.0,0.00048]
[1728252207775,0.03093348,62444.0,62442.0,0.00048]
[1728252208863,0.03093348,62446.0,62442.0,0.00048]
[1728252209058,0.03093348,62445.0,62442.0,0.00048]
[1728252209259,0.03093348,62444.0,62442.0,0.00048]
[1728252209471,0.03093348,62446.0,62442.0,0.00048]
[1728252209656,0.03093348,62445.0,62442.0,0.00048]
[1728252209862,0.03093348,62444.0,62443.0,0.00440196]
[1728252210062,0.424857,62447.0,62443.0,0.00440196]
[1728252210063,0.03093348,62446.0,62443.0,0.00440196]
[1728252210273,0.03093348,62445.0,62443.0,0.00440196]
[1728252210571,0.03093348,62444.0,62443.0,0.00240196]
[1728252210771,0.03093348,62444.0,62443.0,0.00440196]
[1728252211573,0.07014939,62446.0,62443.0,0.00440196]
[1728252211765,0.07014939,62445.0,62443.0,0.00440196]
[1728252211962,0.424857,62447.0,62443.0,0.00440196]
[1728252211963,0.03093348,62444.0,62443.0,0.00440196]